fUST/lending_fUST_20250407
["ID","MTS","AMOUNT","RATE_DAILY","PERIOD"]
[357383991,1744030233804,-357.0,0.00039444,14]
[357383992,1744030233814,-357.0,0.00039444,14]
[357383993,1744030233825,-357.0,0.00039444,14]
[357383994,1744030233835,-357.0,0.00039444,14]
[357383995,1744030233845,-318.0,0.00039444,14]
[357383996,1744030233857,-357.0,0.00039444,14]
[357383997,1744030233867,-357.0,0.00039444,14]
[357383998,1744030233877,-318.0,0.00039444,14]
[357383999,1744030233887,-318.0,0.00039444,14]
[357384000,1744030233897,-357.0,0.00039444,14]
[357384001,1744030233906,-318.0,0.00039444,14]
[357384002,1744030233917,-357.0,0.00039444,14]
[357384003,1744030233926,-357.0,0.00039444,14]
[357384004,1744030233936,-318.0,0.00039444,14]
[357384005,1744030233946,-318.0,0.00039444,14]
[357384006,1744030233956,-318.0,0.00039444,14]
[357384007,1744030233974,-318.0,0.00039444,14]
[357384008,1744030233984,-318.0,0.00039444,14]
[357384009,1744030233995,-318.0,0.00039444,14]
[357384010,1744030234004,-160.0,0.00039476,3]
[357384011,1744030234014,-161.35769188,0.00039486,2]
[357384012,1744030234024,-3141.7,0.00039486,2]
[357384013,1744030234035,-3141.7,0.00039486,2]
[357384014,1744030234045,-3141.7,0.00039486,2]
[357384015,1744030234058,-3141.7,0.00039486,2]
[357384016,1744030234070,-234.01777134,0.00039486,2]
[357384017,1744030234080,-151.0,0.000396,14]
[357384018,1744030234094,-151.0,0.000397,15]
[357384019,1744030234106,-273.3330525,0.00039799,2]
[357384020,1744030234115,-151.0,0.000398,14]
[357384021,1744030234125,-273.33305247,0.00039824,2]
[357384022,1744030234135,-273.33305247,0.0003985,2]
[357384023,1744030234147,-637.80866703,0.00039873,5]
[357384024,1744030234156,-406.76475864,0.00039873,5]
[357384025,1744030234165,-485.99970284,0.00039873,5]
[357384026,1744030234175,-500.0,0.00039873,2]
[357384027,1744030234185,-421.54863569,0.00039873,5]
[357384028,1744030234194,-500.0,0.00039873,5]
[357384029,1744030234204,-500.0,0.00039873,5]
[357384030,1744030234218,-500.0,0.00039873,5]
[357384031,1744030234229,-500.0,0.00039873,5]
[357384032,1744030234238,-500.0,0.00039873,5]
[357384033,1744030234248,-500.0,0.00039873,5]
[357384034,1744030234258,-500.0,0.00039873,5]
[357384035,1744030234268,-500.0,0.00039873,5]
[357384036,1744030234278,-273.33305247,0.00039875,2]
[357384037,1744030234288,-200.0,0.00039876,2]
[357384038,1744030234298,-465.99696525,0.00039889,31]
[357384039,1744030234308,-500.0,0.00039889,31]
[357384040,1744030234318,-228.41329487,0.00039889,31]
[357384041,1744030234328,-783.73948285,0.0003989,3]
[357384042,1744030234337,-162447.612111,0.0003989,3]
[357384043,1744030234347,-160.0,0.00039899,30]
[357384044,1744030234357,-370000.0,0.000399,2]
[357384045,1744030234368,-151.0,0.000399,13]
[357384046,1744030234378,-156.27527196,0.000399,120]
[357384047,1744030234388,-1000.0,0.000399,31]
[357384048,1744030234399,-151.0,0.000399,14]
[357384049,1744030234409,-262.956073,0.000399,14]
[357384050,1744030234419,-281.309498,0.000399,14]
[357384051,1744030234429,-281.309498,0.000399,14]
[357384052,1744030234439,-273.33305247,0.000399,2]
[357384053,1744030234448,-151.0,0.000399,18]
[357384054,1744030234458,-2000.0,0.00039915,4]
[357384055,1744030234470,-500.0,0.00039973,5]
[357384056,1744030234480,-500.0,0.00039973,5]
[357384057,1744030234489,-500.0,0.00039973,5]
[357384058,1744030234500,-501.00402822,0.00039973,5]
[357384059,1744030234509,-500.0,0.00039973,5]
[357384060,1744030234519,-335.9179337,0.00039973,5]
[357384061,1744030234529,-500.0,0.00039973,5]
[357384062,1744030234539,-500.0,0.00039973,5]
[357384063,1744030234549,-500.0,0.00039973,5]
[357384064,1744030234559,-500.0,0.00039973,5]
[357384065,1744030234569,-281.08662353,0.00039973,5]
[357384066,1744030234578,-500.0,0.00039973,5]
[357384067,1744030234587,-500.0,0.00039973,5]
[357384068,1744030234597,-500.62051794,0.00039973,5]
[357384069,1744030234607,-500.0,0.00039973,5]
[357384070,1744030234616,-268.80063328,0.00039973,5]
[357384071,1744030234626,-500.63603819,0.00039973,5]
[357384072,1744030234636,-501.44090802,0.00039973,5]
[357384073,1744030234645,-500.0,0.00039973,5]
[357384074,1744030234655,-500.0,0.00039973,5]
[357384075,1744030234665,-615.76993541,0.00039973,5]
[357384076,1744030234674,-268.23634653,0.00039973,5]
[357384077,1744030234684,-500.0,0.00039973,5]
[357384078,1744030234694,-500.0,0.00039973,2]
[357384079,1744030234703,-500.0,0.00039973,5]
[357384080,1744030234714,-500.0,0.00039973,5]
[357384081,1744030234723,-500.0,0.00039973,5]
[357384082,1744030234733,-500.0,0.00039973,5]
[357384083,1744030234743,-500.0,0.00039973,5]
[357384084,1744030234752,-500.0,0.00039973,5]
[357384085,1744030234761,-518.25638599,0.00039973,5]
[357384086,1744030234771,-500.0,0.00039973,5]
[357384087,1744030234781,-60917.8545415,0.0003999,3]
[357384088,1744030234791,-160.0,0.00039999,30]
[357384089,1744030234800,-34421.80586962,0.0004,120]
[357384090,1744030234809,-2483.28784838,0.0004,120]
[357384091,1744030234819,-11984.40349953,0.0004,120]
[357384092,1744030234828,-500.0,0.0004,120]
[357384093,1744030234837,-9113.01418501,0.0004,2]
[357384094,1744030234846,-200.0,0.0004,120]
[357384095,1744030234856,-151.0,0.0004,14]
[357384096,1744030234865,-151.0,0.0004,14]
[357384097,1744030234875,-151.0,0.0004,14]
[357384098,1744030234884,-311.209562,0.0004,14]
[357384099,1744030234894,-311.209562,0.0004,14]
[357384100,1744030234904,-311.209562,0.0004,14]
[357384101,1744030234915,-311.209562,0.0004,14]
[357384102,1744030234925,-250.0,0.0004,30]
[357384103,1744030234934,-250.0,0.0004,30]
[357384104,1744030234944,-323.48,0.0004,30]
[357384105,1744030234953,-3876.0,0.0004,120]
[357384106,1744030234965,-249185.54630793,0.0004,60]
[357384107,1744030234975,-236.71,0.0004,60]
[357384108,1744030234984,-151.0,0.0004,18]
[357384109,1744030234994,-151.0,0.0004,14]
[357384110,1744030235004,-197.979384,0.0004,14]
[357384111,1744030235014,-151.0,0.0004,14]
[357384112,1744030235024,-173.773829,0.0004,14]
[357384113,1744030235034,-173.773829,0.0004,14]
[357384114,1744030235044,-151.0,0.0004,14]
[357384115,1744030235059,-151.0,0.0004,14]
[357384116,1744030235069,-178.71755006,0.0004,120]
[357384117,1744030235079,-500.0,0.0004,120]
[357384118,1744030235089,-500.0,0.0004,23]
[357384119,1744030235100,-170.76695143,0.0004,120]
[357384120,1744030235109,-166.40598691,0.0004,120]
[357384121,1744030235119,-151.0,0.0004,14]
[357384122,1744030235129,-151.0,0.0004,14]
[357384123,1744030235141,-151.0,0.0004,14]
[357384124,1744030235152,-151.0,0.0004,14]
[357384125,1744030235162,-174.926434,0.0004,14]
[357384126,1744030235172,-235.62355649,0.0004,14]
[357384127,1744030235182,-151.0,0.0004,14]
[357384128,1744030235192,-151.0,0.0004,14]
[357384129,1744030235204,-151.0,0.0004,14]
[357384130,1744030235221,-151.0,0.0004,14]
[357384131,1744030235231,-151.0,0.0004,14]
[357384132,1744030235242,-195.577133,0.0004,14]
[357384133,1744030235253,-195.577133,0.0004,14]
[357384134,1744030235263,-889.3123779,0.0004,2]
[357384135,1744030235273,-160.0,0.0004,120]
[357384136,1744030235284,-151.0,0.0004,14]
[357384137,1744030235294,-500.0,0.0004,120]
[357384138,1744030235304,-500.0,0.0004,120]
[357384139,1744030235314,-154.02497516,0.0004,120]
[357384140,1744030235323,-500.0,0.0004,120]
[357384141,1744030235333,-151.0,0.0004,14]
[357384142,1744030235343,-281.309498,0.0004,14]
[357384143,1744030235353,-281.309498,0.0004,14]
[357384144,1744030235363,-281.309498,0.0004,14]
[357384145,1744030235373,-281.309498,0.0004,14]
[357384146,1744030235383,-299.91,0.0004,120]
[357384147,1744030235393,-151.0,0.0004,14]
[357384148,1744030235402,-151.0,0.0004,14]
[357384149,1744030235412,-151.0,0.0004,14]
[357384150,1744030235422,-151.0,0.000401,14]
[357384151,1744030235431,-151.0,0.000402,18]
[357384152,1744030235441,-153.0,0.00040252,30]
[357384153,1744030235450,-153.0,0.00040252,30]
[357384154,1744030235463,-153.0,0.00040252,30]
[357384155,1744030235472,-153.0,0.00040252,30]
[357384156,1744030235482,-151.0,0.000403,12]
[357384157,1744030235492,-835.0,0.00040317,60]
[357384158,1744030235502,-151.0,0.000404,13]
[357384159,1744030235512,-10000.0,0.000405,90]
[357384160,1744030235521,-543.0,0.00040539,2]
[357384161,1744030235530,-1003.0,0.00040539,2]
[357384162,1744030235540,-2255.0,0.00040539,2]
[357384163,1744030235550,-500.0,0.00040548,120]
[357384164,1744030235559,-653.10130722,0.00040548,23]
[357384165,1744030235569,-150.44238954,0.00040548,120]
[357384166,1744030235579,-500.0,0.00040548,120]
[357384167,1744030235588,-500.0,0.00040548,120]
[357384168,1744030235598,-603.52263412,0.00040548,120]
[357384169,1744030235607,-208.46,0.0004107,120]
[357384170,1744030235617,-153.0,0.00041074,30]
[357384171,1744030235627,-150.5,0.0004108,120]
[357384172,1744030235637,-150.5,0.0004109,120]
[357384173,1744030235647,-4269.83866958,0.00041095,7]
[357384174,1744030235656,-2375.2714712,0.00041095,7]
[357384175,1744030235666,-151.0,0.00041095,14]
[357384176,1744030235676,-500.0,0.00041096,120]
[357384177,1744030235685,-190.0,0.00041096,2]
[357384178,1744030235695,-500.0,0.00041096,120]
[357384179,1744030235705,-500.0,0.00041096,120]
[357384180,1744030235719,-151.59513644,0.00041096,120]
[357384181,1744030235728,-206.50829944,0.00041096,120]
[357384182,1744030235738,-208.82292929,0.00041096,120]
[357384183,1744030235747,-151.0,0.00041096,120]
[357384184,1744030235758,-311.209562,0.00041096,120]
[357384185,1744030235767,-311.209562,0.00041096,120]
[357384186,1744030235776,-565.767548,0.00041211,120]
[357384187,1744030235786,-249.19142667,0.00041232,7]
[357384188,1744030235796,-207.4,0.00041245,2]
[357384189,1744030235805,-252.45,0.000413,31]
[357384190,1744030235815,-252.45,0.000413,31]
[357384191,1744030235825,-252.45,0.000413,31]
[357384192,1744030235836,-252.45,0.000413,31]
[357384193,1744030235846,-252.45,0.000413,31]
[357384194,1744030235856,-252.45,0.000413,31]
[357384195,1744030235866,-252.45,0.000413,31]
[357384196,1744030235876,-252.45,0.000413,31]
[357384197,1744030235886,-252.45,0.000413,31]
[357384198,1744030235896,-252.45,0.000413,31]
[357384199,1744030235906,-252.45,0.000413,31]
[357384200,1744030235916,-252.45,0.000413,31]
[357384201,1744030235925,-252.45,0.000413,31]
[357384202,1744030235935,-252.45,0.000413,31]
[357384203,1744030235945,-252.45,0.000413,31]
[357384204,1744030235954,-252.45,0.000413,31]
[357384205,1744030235966,-252.45,0.000413,31]
[357384206,1744030235976,-252.45,0.000413,31]
[357384207,1744030235986,-252.45,0.000413,31]
[357384208,1744030235996,-252.45,0.000413,31]
[357384209,1744030236005,-252.45,0.000413,31]
[357384210,1744030236015,-252.45,0.000413,31]
[357384211,1744030236024,-252.45,0.000413,31]
[357384212,1744030236034,-252.45,0.000413,31]
[357384213,1744030236046,-2001.0,0.0004147,120]
[357384214,1744030236056,-2001.0,0.0004148,120]
[357384215,1744030236069,-2001.0,0.0004149,120]
[357384216,1744030236079,-10000.0,0.000415,90]
[357384217,1744030236090,-175.45227962,0.0004157,12]
[357384218,1744030236100,-151.0,0.00041608,120]
[357384219,1744030236111,-311.209562,0.00041608,120]
[357384220,1744030236121,-311.209552,0.00041608,120]
[357384221,1744030236131,-151.0,0.00041626,120]
[357384222,1744030236144,-151.0,0.00041626,120]
[357384223,1744030236154,-151.0,0.00041626,120]
[357384224,1744030236163,-151.0,0.00041626,120]
[357384225,1744030236173,-151.0,0.00041626,120]
[357384226,1744030236182,-178.673072,0.00041626,120]
[357384227,1744030236192,-151.0,0.00041626,120]
[357384228,1744030236202,-195.577133,0.00041626,120]
[357384229,1744030236214,-195.577133,0.00041626,120]
[357384230,1744030236224,-12500.0,0.00041626,10]
[357384231,1744030236233,-12500.0,0.00041635,10]
[357384232,1744030236243,-12500.0,0.00041635,10]
[357384233,1744030236253,-151.0,0.00041635,30]
[357384234,1744030236264,-151.0,0.00041635,120]
[357384235,1744030236274,-151.0,0.00041635,120]
[357384236,1744030236284,-151.0,0.00041635,120]
[357384237,1744030236293,-187.214711,0.00041635,120]
[357384238,1744030236303,-187.214711,0.00041635,120]
[357384239,1744030236313,-310.734448,0.00041635,120]
[357384240,1744030236323,-310.734448,0.00041635,120]
[357384241,1744030236332,-151.0,0.00041635,120]
[357384242,1744030236342,-281.309498,0.00041635,120]
[357384243,1744030236352,-281.309498,0.00041635,120]
[357384244,1744030236361,-151.0,0.00041635,120]
[357384245,1744030236370,-273.316716,0.00041635,120]
[357384246,1744030236380,-249.19142667,0.00041643,7]
[357384247,1744030236390,-1065.69099489,0.00041643,7]
[357384248,1744030236400,-12500.0,0.00041644,10]
[357384249,1744030236410,-12500.0,0.00041644,10]
[357384250,1744030236420,-12500.0,0.00041644,10]
[357384251,1744030236430,-219.5203855,0.00041644,10]
[357384252,1744030236440,-777.59478089,0.00041644,120]
[357384253,1744030236450,-168.17825648,0.00041644,120]
[357384254,1744030236462,-230.40449057,0.00041644,120]
[357384255,1744030236472,-500.0,0.00041644,120]
[357384256,1744030236483,-967.87480672,0.00041644,120]
[357384257,1744030236494,-203.38580313,0.00041644,120]
[357384258,1744030236504,-151.0,0.00041651,120]
[357384259,1744030236514,-151.0,0.00041651,120]
[357384260,1744030236524,-173.773829,0.00041651,120]
[357384261,1744030236534,-173.773829,0.00041651,120]
[357384262,1744030236544,-151.0,0.00041651,120]
[357384263,1744030236554,-151.0,0.00041651,120]
[357384264,1744030236564,-151.0,0.00041651,120]
[357384265,1744030236574,-151.0,0.00041651,120]
[357384266,1744030236584,-160.0,0.0004166,10]
[357384267,1744030236594,-12500.0,0.00041661,10]
[357384268,1744030236604,-151.0,0.0004167,120]
[357384269,1744030236614,-163.382346,0.0004167,120]
[357384270,1744030236624,-151.0,0.0004167,120]
[357384271,1744030236634,-151.0,0.0004167,120]
[357384272,1744030236644,-151.0,0.0004167,120]
[357384273,1744030236654,-195.577133,0.0004167,120]
[357384274,1744030236816,-195.577133,0.0004167,120]
[357384275,1744030236827,-500.0,0.00041673,10]
[357384276,1744030236837,-500.0,0.00041673,10]
[357384277,1744030236846,-500.0,0.00041673,10]
[357384278,1744030236855,-501.11557002,0.00041673,10]
[357384279,1744030236865,-500.0,0.00041673,10]
[357384280,1744030236875,-500.0,0.00041673,10]
[357384281,1744030236885,-500.0,0.00041673,10]
[357384282,1744030236895,-500.0,0.00041673,10]
[357384283,1744030236906,-500.0,0.00041673,10]
[357384284,1744030236915,-500.0,0.00041673,10]
[357384285,1744030236925,-500.73757329,0.00041673,10]
[357384286,1744030236934,-151.0,0.00041682,120]
[357384287,1744030236943,-12500.0,0.00041682,10]
[357384288,1744030236952,-295.044979,0.00041691,120]
[357384289,1744030236963,-173.773829,0.00041691,120]
[357384290,1744030236975,-173.773829,0.00041691,120]
[357384291,1744030236985,-151.0,0.00041691,120]
[357384292,1744030236994,-151.0,0.00041691,120]
[357384293,1744030237004,-151.0,0.00041691,120]
[357384294,1744030237013,-151.0,0.00041691,120]
[357384295,1744030237023,-151.0,0.00041691,30]
[357384296,1744030237033,-151.0,0.00041691,120]
[357384297,1744030237042,-253.178872,0.00041691,120]
[357384298,1744030237056,-151.0,0.00041691,120]
[357384299,1744030237066,-310.734448,0.00041691,120]
[357384300,1744030237076,-310.734448,0.00041691,120]
[357384301,1744030237085,-151.0,0.00041691,120]
[357384302,1744030237097,-281.309498,0.00041691,120]
[357384303,1744030237107,-281.309498,0.00041691,120]
[357384304,1744030237117,-151.0,0.00041691,120]
[357384305,1744030237126,-12500.0,0.00041691,10]
[357384306,1744030237136,-12500.0,0.000417,10]
[357384307,1744030237147,-783.73948285,0.000417,10]
[357384308,1744030237156,-5047.0,0.00042,120]
[357384309,1744030237166,-187.214711,0.00042,120]
[357384310,1744030237175,-187.214711,0.00042,120]
[357384311,1744030237185,-874.64832674,0.00042192,120]
[357384312,1744030237195,-286.72112603,0.00042192,120]
[357384313,1744030237205,-239.648856,0.000425,120]
[357384314,1744030237222,-151.0,0.000425,120]
[357384315,1744030237232,-159.164402,0.000425,120]
[357384316,1744030237243,-151.0,0.000425,120]
[357384317,1744030237254,-195.577133,0.000425,120]
[357384318,1744030237264,-195.577133,0.000425,120]
[357384319,1744030237275,-10000.0,0.000425,100]
[357384320,1744030237286,-215.0738,0.00042614,2]
[357384321,1744030237296,-3677.95215818,0.00042681,120]
[357384322,1744030237309,-190.0,0.000428,30]
[357384323,1744030237319,-1455.51286607,0.00042931,2]
[357384324,1744030237330,-359.9796305,0.00042942,30]
[357384325,1744030237340,-169.8179752,0.00042942,30]
[357384326,1744030237350,-359.9796305,0.00042942,30]
[357384327,1744030237360,-359.9796305,0.00042942,30]
[357384328,1744030237371,-494.2483088,0.00042972,30]
[357384329,1744030237381,-359.9796305,0.00042972,30]
[357384330,1744030237391,-160.0,0.00042999,30]
[357384331,1744030237401,-401.90902805,0.00043,7]
[357384332,1744030237411,-401.90902805,0.00043,7]
[357384333,1744030237421,-1132.51851247,0.00043,7]
[357384334,1744030237430,-1132.51851247,0.00043,7]
[357384335,1744030237440,-900.14400599,0.00043,120]
[357384336,1744030237450,-1000.0,0.00043,120]
[357384337,1744030237460,-173640.0,0.00043,7]
[357384338,1744030237479,-151.0,0.00043,120]
[357384339,1744030237488,-151.0,0.00043,120]
[357384340,1744030237498,-151.0,0.00043,120]
[357384341,1744030237508,-173.773829,0.00043,120]
[357384342,1744030237517,-173.773829,0.00043,120]
[357384343,1744030237527,-151.0,0.00043,120]
[357384344,1744030237537,-151.0,0.00043,120]
[357384345,1744030237546,-151.0,0.00043,120]
[357384346,1744030237556,-250.545304,0.00043,120]
[357384347,1744030237565,-869.17463,0.00043,2]
[357384348,1744030237575,-255.74142,0.00043,120]
[357384349,1744030237585,-151.0,0.00043,120]
[357384350,1744030237594,-195.577133,0.00043,120]
[357384351,1744030237603,-151.0,0.00043,30]
[357384352,1744030237613,-195.577133,0.00043,120]
[357384353,1744030237622,-151.0,0.00043,120]
[357384354,1744030237632,-151.0,0.00043,120]
[357384355,1744030237641,-187.214711,0.00043,120]
[357384356,1744030237651,-187.214711,0.00043,120]
[357384357,1744030237660,-783.73948285,0.00043,7]
[357384358,1744030237670,-310.734448,0.00043,120]
[357384359,1744030237679,-310.734448,0.00043,120]
[357384360,1744030237688,-151.0,0.00043,120]
[357384361,1744030237698,-281.309498,0.00043,120]
[357384362,1744030237708,-281.309498,0.00043,120]
[357384363,1744030237722,-151.0,0.00043,120]
[357384365,1744030237731,-259.89968234,0.00043247,30]
[357384366,1744030237741,-151.0,0.00043248,120]
[357384367,1744030237751,-173.773829,0.00043248,120]
[357384368,1744030237761,-173.773829,0.00043248,120]
[357384369,1744030237770,-151.0,0.00043248,120]
[357384370,1744030237779,-151.0,0.00043248,120]
[357384371,1744030237788,-151.0,0.00043248,120]
[357384372,1744030237798,-869.17463,0.00043248,2]
[357384374,1744030237807,-151.0,0.00043248,120]
[357384376,1744030237827,-195.577133,0.00043248,120]
[357384377,1744030237838,-151.0,0.00043248,30]
[357384378,1744030237848,-195.577133,0.00043248,120]
[357384379,1744030237858,-151.0,0.00043248,120]
[357384380,1744030237868,-151.0,0.00043248,120]
[357384381,1744030237878,-187.214711,0.00043248,120]
[357384382,1744030237888,-187.214711,0.00043248,120]
[357384383,1744030237898,-310.734448,0.00043248,120]
[357384384,1744030237907,-310.734448,0.00043248,120]
[357384385,1744030237918,-151.0,0.00043248,120]
[357384386,1744030237927,-151.0,0.00043248,120]
[357384387,1744030237937,-4269.83866958,0.00043248,7]
[357384388,1744030237947,-4269.83866958,0.00043248,7]
[357384389,1744030237958,-32772.4186025,0.00043248,7]
[357384390,1744030237971,-32772.4186025,0.00043248,7]
[357384391,1744030237982,-2375.2714712,0.00043248,7]
[357384392,1744030237992,-2375.2714712,0.00043248,7]
[357384394,1744030238002,-39343.17412848,0.00043248,7]
[357384396,1744030238011,-39343.17412848,0.00043248,7]
[357384398,1744030238021,-2000.0,0.00043276,8]
[357384399,1744030238031,-10000.0,0.000435,120]
[357384401,1744030238041,-180.06482334,0.00043532,29]
[357384402,1744030238052,-543.0,0.00043539,2]
[357384403,1744030238065,-1003.0,0.00043539,2]
[357384404,1744030238075,-2255.0,0.00043539,2]
[357384405,1744030238085,-584.378,0.00043572,30]
[357384406,1744030238095,-2200.0,0.00043572,14]
[357384407,1744030238107,-393.451781,0.00043743,2]
[357384408,1744030238117,-500.0,0.00043752,30]
[357384409,1744030238126,-2000.0,0.000438,60]
[357384410,1744030238136,-500.0,0.00043817,30]
[357384411,1744030238146,-385.12294362,0.00043821,10]
[357384412,1744030238156,-500.0,0.00043834,30]
[357384413,1744030238165,-500.0,0.00043835,120]
[357384415,1744030238175,-405.34744169,0.00043836,60]
[357384417,1744030238184,-2001.0,0.0004387,120]
[357384419,1744030238194,-250.0,0.00043873,10]
[357384421,1744030238203,-2001.0,0.0004388,120]
[357384423,1744030238215,-2001.0,0.0004389,120]
[357384425,1744030238225,-40599.81875112,0.000439,61]
[357384427,1744030238234,-86588.92784862,0.000439,2]
[357384429,1744030238244,-396880.37119041,0.000439,30]
[357384451,1744030238437,-1268.69597218,0.00029118,2]
[357384539,1744030240663,-168.76088372,0.00029118,2]
[357384541,1744030240673,-193.566522,0.00041635,120]
[357384543,1744030240682,-416.629,0.00042627,60]
[357384545,1744030240692,-161.35769188,0.00043899,2]
[357384547,1744030240703,-234.01777134,0.00043899,2]
[357384549,1744030240716,-1091.04825022,0.000439,30]
[357384551,1744030240728,-3192.6895529,0.000439,30]
[357384630,1744030245455,-401.0,0.00037539,2]
[357384631,1744030245466,-401.0,0.00040539,2]
[357384632,1744030245478,-417.7,0.00042627,60]
[357384633,1744030245488,-359.9796305,0.00042972,30]
[357384634,1744030245498,-401.0,0.00043539,2]
[357384635,1744030245509,-161.35769188,0.00043899,2]
[357384637,1744030245519,-199.87919672,0.00043899,2]
[357384639,1744030245529,-4458.08348147,0.000439,30]
[357384642,1744030245541,-6951.6,0.000439,30]
[357384673,1744030246253,-312.46061,0.00042627,60]
[357384674,1744030246264,-457.67939,0.000439,30]
[357384675,1744030246313,-1371.69000338,0.000439,30]
[357384695,1744031202193,151.0,0.00025,120]
[357384712,1744031432184,-509.190793,0.0003589,2]
[357384713,1744031432194,-419.36665037,0.00036163,2]
[357384714,1744031432203,-160.0,0.00036163,2]
[357384715,1744031432212,-160.0,0.00036163,2]
[357384716,1744031432221,-400.0,0.00036282,2]
[357384718,1744031432230,-26631.4188857,0.00036283,2]
[357384720,1744031432240,-2773.36831885,0.000377,106]
[357384722,1744031432249,-161.61,0.000378,31]
[357384724,1744031432262,-161.61,0.000378,31]
[357384725,1744031432272,-161.61,0.000378,31]
[357384727,1744031432281,-161.61,0.000378,31]
[357384728,1744031432291,-161.61,0.000378,31]
[357384730,1744031432300,-161.61,0.000378,31]
[357384731,1744031432309,-161.61,0.000378,31]
[357384732,1744031432319,-161.61,0.000378,31]
[357384733,1744031432328,-161.61,0.000378,31]
[357384734,1744031432337,-161.61,0.000378,31]
[357384735,1744031432346,-161.61,0.000378,31]
[357384736,1744031432355,-161.61,0.000378,31]
[357384737,1744031432365,-2697.14309063,0.000378,2]
[357384738,1744031432374,-246.16112584,0.000379,14]
[357384739,1744031432383,-543.0,0.0003798,2]
[357384740,1744031432392,-230.097,0.0003798,2]
[357384741,1744031432401,-2255.0,0.0003798,2]
[357384742,1744031432411,-356.416,0.00038558,52]
[357384743,1744031432420,-397.0,0.00038851,5]
[357384744,1744031432430,-1721.34537756,0.0003942,2]
[357384745,1744031432442,-7030.30164234,0.0003952,7]
[357384751,1744031438167,-401.0,0.0003798,2]
[357384753,1744031438178,-500.0,0.00039519,15]
[357384755,1744031438187,-232.31469702,0.00039519,15]
[357384756,1744031438196,-500.0,0.00039519,2]
[357384757,1744031438206,-500.0,0.00039519,15]
[357384758,1744031438215,-500.0,0.00039519,15]
[357384760,1744031438223,-500.0,0.00039519,15]
[357384761,1744031438233,-500.0,0.00039519,2]
[357384763,1744031438242,-500.0,0.00039519,15]
[357384764,1744031438251,-500.0,0.00039519,15]
[357384766,1744031438260,-500.0,0.00039519,2]
[357384767,1744031438269,-500.0,0.00039519,15]
[357384768,1744031438279,-500.0,0.00039519,2]
[357384769,1744031438288,-500.0,0.00039519,15]
[357384770,1744031438298,-500.0,0.00039519,15]
[357384771,1744031438307,-500.0,0.00039519,2]
[357384772,1744031438317,-500.0,0.00039519,15]
[357384773,1744031438327,-500.0,0.00039519,2]
[357384774,1744031438336,-500.0,0.00039519,15]
[357384775,1744031438346,-500.0,0.00039519,15]
[357384776,1744031438355,-290.52182404,0.00039519,15]
[357384777,1744031438367,-209.47817596,0.00039519,15]
[357384778,1744031438376,-500.0,0.00039519,2]
[357384779,1744031438386,-500.0,0.00039519,15]
[357384780,1744031438396,-200.0,0.00039519,15]
[357384781,1744031438405,-343.36997487,0.00039519,2]
[357384782,1744031438415,-460.74716418,0.00039519,15]